fUST/lending_fUST_20240715
["ID","MTS","AMOUNT","RATE_DAILY","PERIOD"]
[332152709,1720991456714,-190.46,0.00026301,2]
[332152710,1720991456724,-600.23,0.00026301,2]
[332152711,1720991456734,-756.45,0.00026301,4]
[332152712,1720991456744,-1725.07,0.00026301,2]
[332152713,1720991456754,-500.0,0.00026301,2]
[332152714,1720991456764,-548.57,0.00026301,2]
[332152715,1720991456774,-500.0,0.00026301,2]
[332152716,1720991456784,-150.60841811,0.00026331,7]
[332152717,1720991456794,-367.400025,0.00026356,2]
[332152718,1720991456804,-156.270943,0.00026404,2]
[332152719,1720991456814,-203.9,0.00026413,2]
[332152720,1720991456824,-902.55200027,0.00026453,2]
[332152721,1720991456834,-3000.0,0.000265,2]
[332152722,1720991456844,-3000.0,0.0002651,2]
[332152723,1720991456854,-3000.0,0.0002652,2]
[332152724,1720991456864,-3000.0,0.0002653,2]
[332152725,1720991456874,-3000.0,0.0002654,2]
[332152726,1720991456884,-3000.0,0.0002655,2]
[332152727,1720991456895,-3000.0,0.0002656,2]
[332152728,1720991456906,-3000.0,0.0002657,2]
[332152729,1720991456916,-902.55200027,0.00026571,2]
[332152730,1720991456927,-267.01475721,0.00026574,2]
[332152731,1720991456937,-248.61290859,0.00026574,2]
[332152732,1720991456947,-894.05585834,0.00026575,2]
[332152733,1720991456957,-297.2944,0.00026575,2]
[332152734,1720991456967,-500.0,0.00026575,2]
[332152735,1720991456977,-500.0,0.00026575,2]
[332152736,1720991456987,-676.7,0.00026575,2]
[332152737,1720991456998,-425.67,0.00026575,2]
[332152738,1720991457008,-878.99,0.00026575,2]
[332152739,1720991457018,-500.0,0.00026575,2]
[332152740,1720991457028,-500.0,0.00026575,2]
[332152741,1720991457038,-500.0,0.00026575,2]
[332152742,1720991457049,-500.0,0.00026575,2]
[332152743,1720991457059,-500.0,0.00026575,2]
[332152744,1720991457069,-150.96,0.00026575,2]
[332152745,1720991457079,-904.6,0.00026575,2]
[332152746,1720991457090,-260.21110003,0.00026575,2]
[332152747,1720991457100,-3894.16,0.00026575,2]
[332152748,1720991457111,-1001.64,0.00026575,2]
[332152749,1720991457122,-500.0,0.00026575,2]
[332152750,1720991457132,-500.0,0.00026575,2]
[332152751,1720991457142,-500.0,0.00026575,2]
[332152752,1720991457152,-500.0,0.00026575,2]
[332152753,1720991457163,-10116.63,0.00026575,2]
[332152754,1720991457174,-600.23,0.00026575,2]
[332152755,1720991457185,-756.45,0.00026575,4]
[332152756,1720991457195,-1725.07,0.00026575,2]
[332152757,1720991457205,-500.0,0.00026575,2]
[332152758,1720991457216,-548.57,0.00026575,2]
[332152759,1720991457226,-500.0,0.00026575,2]
[332152760,1720991457237,-3000.0,0.0002658,2]
[332152761,1720991457247,-3000.0,0.0002659,2]
[332152762,1720991457258,-3000.0,0.000266,2]
[332152763,1720991457268,-5687.638011,0.0002661,2]
[332152764,1720991457279,-158.28553448,0.00026649,2]
[332152765,1720991457289,-400.0,0.00026661,2]
[332152766,1720991457299,-902.55200027,0.00026696,2]
[332152767,1720991457310,-500.0,0.00026849,2]
[332152768,1720991457320,-500.0,0.00026849,2]
[332152769,1720991457330,-676.7,0.00026849,2]
[332152770,1720991457340,-151.0,0.00026849,7]
[332152771,1720991457350,-413.6544,0.00026849,7]
[332152772,1720991457361,-413.6544,0.00026849,7]
[332152773,1720991457372,-878.99,0.00026849,2]
[332152774,1720991457382,-500.0,0.00026849,2]
[332152775,1720991457391,-500.0,0.00026849,2]
[332152776,1720991457401,-500.0,0.00026849,2]
[332152777,1720991457412,-500.0,0.00026849,2]
[332152778,1720991457422,-500.0,0.00026849,2]
[332152779,1720991457432,-904.6,0.00026849,2]
[332152780,1720991457443,-3894.16,0.00026849,2]
[332152781,1720991457456,-1001.64,0.00026849,2]
[332152782,1720991457467,-500.0,0.00026849,2]
[332152783,1720991457477,-500.0,0.00026849,2]
[332152784,1720991457489,-500.0,0.00026849,2]
[332152785,1720991457499,-500.0,0.00026849,2]
[332152786,1720991457510,-10116.63,0.00026849,2]
[332152787,1720991457522,-600.23,0.00026849,2]
[332152788,1720991457533,-756.45,0.00026849,4]
[332152789,1720991457543,-1725.07,0.00026849,2]
[332152790,1720991457553,-500.0,0.00026849,2]
[332152791,1720991457665,-548.57,0.00026849,2]
[332152792,1720991457676,-500.0,0.00026849,2]
[332152793,1720991457686,-151.0,0.00026849,7]
[332152794,1720991457695,-151.0,0.00026849,7]
[332152795,1720991457705,-201.19500157,0.00026864,2]
[332152796,1720991457715,-150.60841811,0.00026869,4]
[332152797,1720991457725,-203.9,0.00026912,2]
[332152798,1720991457735,-202.36475431,0.00026941,2]
[332152799,1720991457745,-223.71703034,0.00026989,2]
[332152800,1720991457755,-157.80959748,0.00027008,2]
[332152801,1720991457765,-154.1368992,0.00027026,2]
[332152802,1720991457775,-349.85423518,0.00027123,2]
[332152803,1720991457786,-500.0,0.00027123,2]
[332152804,1720991457796,-676.7,0.00027123,2]
[332152805,1720991457806,-878.99,0.00027123,2]
[332152806,1720991457816,-500.0,0.00027123,2]
[332152807,1720991457826,-500.0,0.00027123,2]
[332152808,1720991457836,-500.0,0.00027123,2]
[332152809,1720991457846,-500.0,0.00027123,2]
[332152810,1720991457855,-500.0,0.00027123,2]
[332152811,1720991457865,-904.6,0.00027123,2]
[332152812,1720991457875,-3894.16,0.00027123,2]
[332152813,1720991457884,-1001.64,0.00027123,2]
[332152814,1720991457896,-500.0,0.00027123,2]
[332152815,1720991457906,-527.73,0.00027123,2]
[332152816,1720991457917,-500.0,0.00027123,2]
[332152817,1720991457927,-500.0,0.00027123,2]
[332152818,1720991457937,-10116.63,0.00027123,2]
[332152819,1720991457947,-600.23,0.00027123,2]
[332152820,1720991457957,-756.45,0.00027123,4]
[332152821,1720991457967,-1725.07,0.00027123,2]
[332152822,1720991457977,-500.0,0.00027123,2]
[332152823,1720991457987,-548.57,0.00027123,2]
[332152824,1720991457997,-500.0,0.00027123,2]
[332152825,1720991458006,-169.087781,0.00027123,2]
[332152826,1720991458016,-169.087781,0.00027123,120]
[332152827,1720991458026,-902.55200027,0.00027161,2]
[332152828,1720991458036,-283.56828739,0.00027184,2]
[332152829,1720991458046,-709.588569,0.00027195,2]
[332152830,1720991458055,-367.400025,0.00027245,2]
[332152831,1720991458065,-367.400025,0.0002726,2]
[332152832,1720991458074,-151.0,0.00027282,7]
[332152833,1720991458084,-3200.0,0.00027282,2]
[332152834,1720991458094,-300.0,0.00027282,2]
[332152835,1720991458103,-248.999325,0.00027397,7]
[332152836,1720991458112,-500.0,0.00027397,2]
[332152837,1720991458122,-248.999325,0.00027397,7]
[332152838,1720991458131,-676.7,0.00027397,2]
[332152839,1720991458140,-500.0,0.00027397,2]
[332152840,1720991458150,-500.0,0.00027397,2]
[332152841,1720991458160,-500.0,0.00027397,2]
[332152842,1720991458169,-500.0,0.00027397,2]
[332152843,1720991458179,-500.0,0.00027397,2]
[332152844,1720991458188,-500.0,0.00027397,2]
[332152845,1720991458197,-500.0,0.00027397,2]
[332152846,1720991458206,-500.0,0.00027397,2]
[332152847,1720991458216,-500.0,0.00027397,2]
[332152848,1720991458225,-500.0,0.00027397,2]
[332152849,1720991458234,-500.0,0.00027397,2]
[332152850,1720991458244,-500.0,0.00027397,2]
[332152851,1720991458253,-500.0,0.00027397,2]
[332152852,1720991458263,-500.0,0.00027397,2]
[332152853,1720991458272,-500.0,0.00027397,2]
[332152854,1720991458281,-500.0,0.00027397,2]
[332152855,1720991458291,-500.0,0.00027397,2]
[332152856,1720991458300,-500.0,0.00027397,2]
[332152857,1720991458309,-500.0,0.00027397,2]
[332152858,1720991458319,-500.0,0.00027397,2]
[332152859,1720991458328,-500.0,0.00027397,2]
[332152860,1720991458337,-500.0,0.00027397,2]
[332152861,1720991458347,-500.0,0.00027397,2]
[332152862,1720991458356,-500.0,0.00027397,2]
[332152863,1720991458365,-500.0,0.00027397,2]
[332152864,1720991458375,-500.0,0.00027397,2]
[332152865,1720991458384,-500.0,0.00027397,2]
[332152866,1720991458393,-500.0,0.00027397,2]
[332152867,1720991458402,-500.0,0.00027397,2]
[332152868,1720991458411,-500.0,0.00027397,2]
[332152869,1720991458421,-500.0,0.00027397,2]
[332152870,1720991458430,-500.0,0.00027397,2]
[332152871,1720991458440,-500.0,0.00027397,2]
[332152872,1720991458449,-500.0,0.00027397,2]
[332152873,1720991458458,-500.0,0.00027397,2]
[332152874,1720991458467,-500.0,0.00027397,2]
[332152875,1720991458477,-190.26598929,0.00027397,2]
[332152876,1720991458486,-500.0,0.00027397,2]
[332152877,1720991458496,-500.0,0.00027397,2]
[332152878,1720991458506,-500.0,0.00027397,2]
[332152879,1720991458515,-500.0,0.00027397,2]
[332152880,1720991458526,-500.0,0.00027397,2]
[332152881,1720991458535,-500.0,0.00027397,2]
[332152882,1720991458544,-410.02955436,0.00027397,2]
[332152883,1720991458554,-500.0,0.00027397,2]
[332152884,1720991458564,-500.0,0.00027397,2]
[332152885,1720991458573,-500.0,0.00027397,2]
[332152886,1720991458583,-500.0,0.00027397,2]
[332152887,1720991458593,-500.0,0.00027397,2]
[332152888,1720991458605,-500.0,0.00027397,2]
[332152889,1720991458615,-500.0,0.00027397,2]
[332152890,1720991458625,-500.0,0.00027397,2]
[332152891,1720991458635,-500.0,0.00027397,2]
[332152892,1720991458645,-500.0,0.00027397,2]
[332152893,1720991458654,-357.70365407,0.00027397,2]
[332152894,1720991458663,-878.99,0.00027397,2]
[332152895,1720991458672,-485.26,0.00027397,2]
[332152896,1720991458683,-500.0,0.00027397,2]
[332152897,1720991458693,-500.0,0.00027397,2]
[332152898,1720991458703,-500.0,0.00027397,2]
[332152899,1720991458712,-500.0,0.00027397,2]
[332152900,1720991458721,-904.6,0.00027397,2]
[332152901,1720991458730,-3894.16,0.00027397,2]
[332152902,1720991458741,-263.749196,0.00027397,7]
[332152903,1720991458750,-1001.64,0.00027397,2]
[332152904,1720991458759,-263.749196,0.00027397,7]
[332152905,1720991458768,-151.0,0.00027397,2]
[332152906,1720991458778,-151.0,0.00027397,7]
[332152907,1720991458787,-151.0,0.00027397,7]
[332152908,1720991458797,-151.0,0.00027397,7]
[332152909,1720991458806,-482.96,0.00027397,2]
[332152910,1720991458816,-162.085191,0.00027397,7]
[332152911,1720991458826,-162.085191,0.00027397,7]
[332152912,1720991458836,-500.0,0.00027397,2]
[332152913,1720991458845,-151.0,0.00027397,7]
[332152914,1720991458855,-151.0,0.00027397,7]
[332152915,1720991458866,-500.0,0.00027397,2]
[332152916,1720991458875,-10116.63,0.00027397,2]
[332152917,1720991458885,-200.804126,0.00027397,7]
[332152918,1720991458894,-151.0,0.00027397,7]
[332152919,1720991458903,-600.23,0.00027397,2]
[332152920,1720991458914,-756.45,0.00027397,4]
[332152921,1720991458923,-1725.07,0.00027397,2]
[332152922,1720991458932,-500.0,0.00027397,2]
[332152923,1720991458942,-548.57,0.00027397,2]
[332152924,1720991458952,-500.0,0.00027397,2]
[332152925,1720991458963,-6250.0,0.00027397,120]
[332152926,1720991458971,-1011.94775,0.00027397,2]
[332152927,1720991458981,-1011.94775,0.00027397,2]
[332152928,1720991458991,-1011.94775,0.00027397,2]
[332152929,1720991459000,-1011.94775,0.00027397,2]
[332152930,1720991459010,-203.9,0.00027412,2]
[332152931,1720991459020,-150.60841811,0.00027417,2]
[332152932,1720991459029,-157.80959748,0.00027459,2]
[332152933,1720991459039,-367.400025,0.00027474,2]
[332152934,1720991459048,-367.400025,0.00027498,2]
[332152935,1720991459058,-367.400025,0.00027665,2]
[332152936,1720991459067,-500.0,0.00027671,2]
[332152937,1720991459076,-676.7,0.00027671,2]
[332152938,1720991459087,-878.99,0.00027671,2]
[332152939,1720991459096,-500.0,0.00027671,2]
[332152940,1720991459106,-500.0,0.00027671,2]
[332152941,1720991459116,-500.0,0.00027671,2]
[332152942,1720991459125,-500.0,0.00027671,2]
[332152943,1720991459134,-174.573972,0.00027671,7]
[332152944,1720991459143,-168.031343,0.00027671,7]
[332152945,1720991459153,-168.031343,0.00027671,7]
[332152946,1720991459163,-239.752065,0.00027671,7]
[332152947,1720991459171,-239.752065,0.00027671,7]
[332152948,1720991459181,-904.6,0.00027671,2]
[332152949,1720991459190,-3894.16,0.00027671,2]
[332152950,1720991459200,-1001.64,0.00027671,2]
[332152951,1720991459209,-154.59445059,0.00027671,2]
[332152952,1720991459219,-151.0,0.00027671,7]
[332152953,1720991459229,-151.0,0.00027671,7]
[332152954,1720991459239,-500.0,0.00027671,2]
[332152955,1720991459248,-500.0,0.00027671,2]
[332152956,1720991459258,-10116.63,0.00027671,2]
[332152957,1720991459268,-600.23,0.00027671,2]
[332152958,1720991459277,-756.45,0.00027671,4]
[332152959,1720991459286,-1725.07,0.00027671,2]
[332152960,1720991459296,-500.0,0.00027671,2]
[332152961,1720991459305,-548.57,0.00027671,2]
[332152962,1720991459315,-519.22837706,0.00027671,2]
[332152963,1720991459324,-367.400025,0.00027714,2]
[332152964,1720991459333,-154.59445059,0.00027909,2]
[332152965,1720991459343,-203.9,0.00027912,2]
[332152966,1720991459352,-500.0,0.00027945,2]
[332152967,1720991459361,-676.7,0.00027945,2]
[332152968,1720991459370,-878.99,0.00027945,2]
[332152969,1720991459380,-500.0,0.00027945,2]
[332152970,1720991459390,-500.0,0.00027945,2]
[332152971,1720991459399,-500.0,0.00027945,2]
[332152972,1720991459408,-500.0,0.00027945,2]
[332152973,1720991459418,-904.6,0.00027945,2]
[332152974,1720991459427,-3894.16,0.00027945,2]
[332152975,1720991459436,-1001.64,0.00027945,2]
[332152976,1720991459446,-500.0,0.00027945,2]
[332152977,1720991459456,-500.0,0.00027945,2]
[332152978,1720991459465,-10116.63,0.00027945,2]
[332152979,1720991459474,-600.23,0.00027945,2]
[332152980,1720991459484,-756.45,0.00027945,4]
[332152981,1720991459493,-1725.07,0.00027945,2]
[332152982,1720991459503,-500.0,0.00027945,2]
[332152983,1720991459513,-548.57,0.00027945,2]
[332152984,1720991459522,-1407.0,0.00027996,2]
[332152985,1720991459533,-307.28386309,0.00028,30]
[332152986,1720991459543,-515.8936904,0.00028,2]
[332152987,1720991459553,-160.22197401,0.00028103,2]
[332152988,1720991459562,-367.400025,0.00028159,2]
[332152989,1720991459572,-500.0,0.00028219,2]
[332152990,1720991459582,-676.7,0.00028219,2]
[332152991,1720991459592,-878.99,0.00028219,2]
[332152992,1720991459607,-151.0,0.00028219,7]
[332152993,1720991459618,-282.22730886,0.00028219,2]
[332152994,1720991459628,-151.0,0.00028219,7]
[332152995,1720991459638,-500.0,0.00028219,2]
[332152996,1720991459647,-1011.94775,0.00028219,2]
[332152997,1720991459656,-1011.94775,0.00028219,2]
[332152998,1720991459665,-500.0,0.00028219,2]
[332152999,1720991459674,-500.0,0.00028219,2]
[332153000,1720991459685,-904.6,0.00028219,2]
[332153001,1720991459694,-3894.16,0.00028219,2]
[332153002,1720991459703,-1001.64,0.00028219,2]
[332153003,1720991459712,-500.0,0.00028219,2]
[332153004,1720991459722,-500.0,0.00028219,2]
[332153005,1720991459731,-10116.63,0.00028219,2]
[332153006,1720991459741,-600.23,0.00028219,2]
[332153007,1720991459750,-756.45,0.00028219,4]
[332153008,1720991459759,-1725.07,0.00028219,2]
[332153009,1720991459769,-500.0,0.00028219,2]
[332153010,1720991459778,-548.57,0.00028219,2]
[332153011,1720991459787,-203.9,0.00028411,3]
[332153012,1720991459797,-167.42203445,0.00028441,2]
[332153013,1720991459807,-500.0,0.00028493,2]
[332153014,1720991459816,-676.7,0.00028493,2]
[332153015,1720991459825,-878.99,0.00028493,2]
[332153016,1720991459835,-500.0,0.00028493,2]
[332153017,1720991459844,-500.0,0.00028493,2]
[332153018,1720991459853,-500.0,0.00028493,2]
[332153019,1720991459863,-904.6,0.00028493,2]
[332153020,1720991459873,-3894.16,0.00028493,2]
[332153021,1720991459882,-1001.64,0.00028493,2]
[332153022,1720991459892,-500.0,0.00028493,2]
[332153023,1720991459901,-500.0,0.00028493,2]
[332153024,1720991459912,-10116.63,0.00028493,2]
[332153025,1720991459922,-600.23,0.00028493,2]
[332153026,1720991459931,-756.45,0.00028493,4]
[332153027,1720991459941,-1725.07,0.00028493,2]
[332153028,1720991459951,-500.0,0.00028493,2]
[332153029,1720991459960,-548.57,0.00028493,2]
[332153030,1720991459971,-367.400025,0.00028527,2]
[332153031,1720991459981,-367.400025,0.00028607,2]
[332153032,1720991459991,-902.55200027,0.00028651,2]
[332153033,1720991460000,-367.400025,0.00028744,2]
[332153034,1720991460010,-419.13895755,0.00028767,2]
[332153035,1720991460019,-676.7,0.00028767,2]
[332153036,1720991460028,-878.99,0.00028767,2]
[332153037,1720991460038,-500.0,0.00028767,2]
[332153038,1720991460048,-500.0,0.00028767,2]
[332153039,1720991460058,-500.0,0.00028767,2]
[332153040,1720991460163,-904.6,0.00028767,2]
[332153041,1720991460176,-3894.16,0.00028767,2]
[332153042,1720991460185,-1001.64,0.00028767,2]
[332153043,1720991460195,-295.2352694,0.00028767,2]
[332153044,1720991460204,-500.0,0.00028767,2]
[332153045,1720991460214,-10116.63,0.00028767,2]
[332153046,1720991460224,-600.23,0.00028767,2]
[332153047,1720991460233,-756.45,0.00028767,4]
[332153048,1720991460243,-1725.07,0.00028767,2]
[332153049,1720991460252,-615.35873573,0.00028767,2]
[332153050,1720991460262,-548.57,0.00028767,2]
[332153051,1720991460272,-2258.0,0.00028795,2]
[332153052,1720991460282,-959.58137897,0.000288,2]
[332153053,1720991460292,-150.0,0.0002891,2]
[332153054,1720991460301,-503.0,0.0002891,2]
[332153055,1720991460311,-203.9,0.00028911,3]
[332153056,1720991460321,-151.0,0.00028911,3]
[332153057,1720991460330,-902.55200027,0.00028917,2]
[332153058,1720991460340,-902.55200027,0.00028982,2]
[332153059,1720991460349,-676.7,0.00029041,2]
[332153060,1720991460360,-878.99,0.00029041,2]
[332153061,1720991460370,-500.0,0.00029041,2]
[332153062,1720991460380,-500.0,0.00029041,2]
[332153063,1720991460390,-500.0,0.00029041,2]
[332153064,1720991460400,-904.6,0.00029041,2]
[332153065,1720991460409,-3894.16,0.00029041,2]
[332153066,1720991460419,-1001.64,0.00029041,2]
[332153067,1720991460429,-500.0,0.00029041,2]
[332153068,1720991460440,-10116.63,0.00029041,2]
[332153069,1720991460450,-600.23,0.00029041,2]
[332153070,1720991460460,-756.45,0.00029041,4]
[332153071,1720991460470,-1725.07,0.00029041,2]
[332153072,1720991460480,-548.57,0.00029041,2]
[332153073,1720991460490,-367.400025,0.00029186,2]
[332153074,1720991460503,-185.55608289,0.00029201,7]
[332153075,1720991460513,-902.55200027,0.00029215,2]
[332153076,1720991460522,-160.22197401,0.00029277,2]
[332153077,1720991460532,-676.7,0.00029315,2]
[332153078,1720991460542,-151.0,0.00029315,7]
[332153079,1720991460552,-413.6544,0.00029315,7]
[332153080,1720991460561,-413.6544,0.00029315,7]
[332153081,1720991460571,-878.99,0.00029315,2]
[332153082,1720991460581,-500.0,0.00029315,2]
[332153083,1720991460592,-500.0,0.00029315,2]
[332153084,1720991460607,-500.0,0.00029315,2]
[332153085,1720991460616,-904.6,0.00029315,2]
[332153086,1720991460626,-3894.16,0.00029315,2]
[332153087,1720991460637,-1001.64,0.00029315,2]
[332153088,1720991460646,-500.0,0.00029315,2]
[332153089,1720991460656,-10116.63,0.00029315,2]
[332153090,1720991460665,-600.23,0.00029315,2]
[332153091,1720991460677,-756.45,0.00029315,4]
[332153092,1720991460687,-1725.07,0.00029315,2]
[332153093,1720991460696,-548.57,0.00029315,2]
[332153094,1720991460705,-1000.0,0.00029328,2]
[332153095,1720991460715,-203.9,0.00029411,3]
[332153096,1720991460724,-151.0,0.00029411,3]
[332153097,1720991460733,-1000.0,0.00029438,2]
[332153098,1720991460745,-153.0,0.00029534,2]
[332153099,1720991460755,-153.0,0.00029534,2]
[332153100,1720991460767,-153.0,0.00029534,2]
[332153101,1720991460776,-153.0,0.00029534,2]
[332153102,1720991460785,-153.0,0.00029534,2]
[332153103,1720991460794,-153.0,0.00029534,2]
[332153104,1720991460804,-1000.0,0.00029545,2]
[332153105,1720991460813,-1000.0,0.00029553,2]
[332153106,1720991460822,-1000.0,0.00029563,2]
[332153107,1720991460831,-1000.0,0.00029567,2]
[332153108,1720991460841,-1000.0,0.00029587,2]
[332153109,1720991460850,-1000.0,0.00029588,2]
[332153110,1720991460859,-676.7,0.00029589,2]
[332153111,1720991460869,-878.99,0.00029589,2]
[332153112,1720991460878,-500.0,0.00029589,2]
[332153113,1720991460887,-500.0,0.00029589,2]
[332153114,1720991460897,-500.0,0.00029589,2]
[332153115,1720991460907,-904.6,0.00029589,2]
[332153116,1720991460916,-3894.16,0.00029589,2]
[332153117,1720991460925,-1001.64,0.00029589,2]
[332153118,1720991460936,-162.085191,0.00029589,7]
[332153119,1720991460945,-162.085191,0.00029589,7]
[332153120,1720991460955,-151.0,0.00029589,7]
[332153121,1720991460964,-151.0,0.00029589,7]
[332153122,1720991460974,-500.0,0.00029589,2]
[332153123,1720991460983,-10116.63,0.00029589,2]
[332153124,1720991460995,-151.0,0.00029589,7]
[332153125,1720991461004,-600.23,0.00029589,2]
[332153126,1720991461014,-756.45,0.00029589,4]
[332153127,1720991461023,-151.0,0.00029589,7]
[332153128,1720991461033,-1725.07,0.00029589,2]
[332153129,1720991461043,-548.57,0.00029589,2]
[332153130,1720991461052,-317.76513418,0.00029592,2]
[332153131,1720991461062,-736.70531873,0.00029594,2]
[332153132,1720991461071,-1000.0,0.00029607,2]
[332153133,1720991461081,-1000.0,0.00029629,2]
[332153134,1720991461090,-1000.0,0.00029629,2]
[332153135,1720991461100,-367.400025,0.00029641,2]
[332153136,1720991461109,-1000.0,0.00029642,2]
[332153137,1720991461119,-1000.0,0.00029651,2]
[332153138,1720991461128,-300.0,0.00029682,2]
[332153139,1720991461137,-5292.88975486,0.00029732,2]
[332153140,1720991461147,-1000.0,0.00029739,2]
[332153141,1720991461157,-367.400025,0.0002974,2]
[332153142,1720991461166,-1000.0,0.00029749,2]
[332153143,1720991461176,-1000.0,0.00029752,2]
[332153144,1720991461186,-1000.0,0.00029759,2]
[332153145,1720991461198,-367.400025,0.00029771,2]
[332153146,1720991461208,-164.4162941,0.00029789,2]
[332153147,1720991461218,-366.6405652,0.00029826,2]
[332153148,1720991461228,-150.65189833,0.00029856,2]
[332153149,1720991461238,-676.7,0.00029863,2]
[332153150,1720991461251,-878.99,0.00029863,2]
[332153151,1720991461261,-500.0,0.00029863,2]
[332153152,1720991461272,-500.0,0.00029863,2]
[332153153,1720991461283,-500.0,0.00029863,2]
[332153154,1720991461292,-904.6,0.00029863,2]
[332153155,1720991461301,-3894.16,0.00029863,2]
[332153156,1720991461310,-263.749196,0.00029863,7]
[332153157,1720991461319,-263.749196,0.00029863,7]
[332153158,1720991461328,-1001.64,0.00029863,2]
[332153159,1720991461337,-151.0,0.00029863,2]
[332153160,1720991461346,-151.0,0.00029863,7]
[332153161,1720991461356,-151.0,0.00029863,7]
[332153162,1720991461365,-151.0,0.00029863,7]
[332153163,1720991461375,-500.0,0.00029863,2]
[332153164,1720991461384,-10116.63,0.00029863,2]
[332153165,1720991461393,-600.23,0.00029863,2]
[332153166,1720991461402,-756.45,0.00029863,4]
[332153167,1720991461412,-1725.07,0.00029863,2]
[332153168,1720991461421,-548.57,0.00029863,2]
[332153169,1720991461430,-4331.64342127,0.000299,30]
[332153170,1720991461439,-203.9,0.0002991,3]
[332153171,1720991461449,-151.0,0.0002991,3]
[332153172,1720991461458,-157.80959748,0.00029947,2]
[332153173,1720991461467,-902.55200027,0.00029992,2]
[332153174,1720991461476,-101305.21004441,0.0003,30]
[332153176,1720991522645,354.29784889,0.00016254,2]
[332153177,1720991522687,-500.0,0.00016254,2]
[332153178,1720991522725,-500.0,0.00016254,2]
[332153179,1720991522845,-500.0,0.00016254,2]
[332153180,1720991617911,551.95692783,0.00014999,2]
[332153181,1720991627073,902.0212717,0.0001555,2]
[332153182,1720991641080,383.26537159,0.00014999,2]
[332153183,1720991645032,441.06169822,0.00014999,2]
[332153184,1720991646199,542.02640015,0.00014999,2]
[332153185,1720991655220,13128.40965294,0.0001555,2]
[332153186,1720991658711,480.89692261,0.00014999,2]
[332153187,1720991661261,1160.1146898,0.00014999,2]
[332153188,1720991661562,1886.19830605,0.0001555,2]
[332153189,1720991670449,352.05638924,0.00014999,2]
[332153190,1720991672986,12379.60622891,0.0001555,2]
[332153191,1720991674634,885.39104552,0.00014999,2]
[332153192,1720991675128,417.29730511,0.0001555,2]
[332153193,1720991681719,424.79035194,0.00014999,2]
[332153194,1720991683529,1707.09413431,0.00014999,2]
[332153195,1720991685294,1974.46480504,0.0001555,2]
[332153196,1720991707130,156.70369846,0.00014999,2]
[332153197,1720991768208,277.71862252,0.00014999,2]
[332153198,1720991798731,283.56828739,0.00014999,2]
[332153199,1720991799868,248.61290859,0.00014999,2]
[332153200,1720991805038,405.47818008,0.00014999,2]
[332153213,1720992030285,24900.0,0.00015224,2]
[332153215,1720992048616,180.08554877,0.00014999,2]
[332153216,1720992051406,154.91693737,0.00014999,2]
[332153217,1720992079443,287.14415021,0.00014999,2]
[332153218,1720992085314,213.97703137,0.00014999,2]
[332153219,1720992086233,302.3111812,0.00014999,2]
[332153220,1720992104194,154.97608719,0.00014999,2]
[332153222,1720992143086,819.59002386,0.00014999,2]
[332153223,1720992148591,1029.4312377,0.00015199,2]